[Event "Titled Tuesday Blitz June 13 Early 2023"]
[White "Ginzburg, Yakov"]
[Black "Afanasieva, Alexandra"]
[WhiteFideId "4157176"]
[BlackFideId "34126926"]
[WhiteElo "2305"]
[BlackElo "1736"]
[Result "0-1"]
[Round "9"]
[TimeControl "180+2"]
[Date "2023.06.13"]
[WhiteClock "0:00:05"]
[BlackClock "0:00:04"]
[Board "102"]

1. d4 {[%clk 0:03:00]}  Nf6 {[%clk 0:02:59]} 2. Nf3 {[%clk 0:03:00]}  b6 {[%clk 0:02:59]} 3. c4 {[%clk 0:02:58]}  e6 {[%clk 0:02:58]} 4. g3 {[%clk 0:02:57]}  Ba6 {[%clk 0:02:58]} 5. Nbd2 {[%clk 0:02:55]}  d5 {[%clk 0:02:56]} 6. Bg2 {[%clk 0:02:55]}  Bd6 {[%clk 0:02:55]} 7. O-O {[%clk 0:02:54]}  O-O {[%clk 0:02:55]} 8. Qc2 {[%clk 0:02:52]}  Nbd7 {[%clk 0:02:52]} 9. Re1 {[%clk 0:02:44]}  Bb7 {[%clk 0:02:50]} 10. b3 {[%clk 0:02:40]}  Rc8 {[%clk 0:02:49]} 11. Bb2 {[%clk 0:02:39]}  c5 {[%clk 0:02:49]} 12. Rad1 {[%clk 0:02:31]}  Re8 {[%clk 0:02:35]} 13. Qb1 {[%clk 0:02:19]}  Qe7 {[%clk 0:02:28]} 14. e3 {[%clk 0:02:04]}  Nf8 {[%clk 0:02:16]} 15. Ne5 {[%clk 0:02:00]}  Ng6 {[%clk 0:02:04]} 16. f4 {[%clk 0:02:00]}  Bxe5 {[%clk 0:01:41]} 17. fxe5 {[%clk 0:01:43]}  Ng4 {[%clk 0:01:35]} 18. cxd5 {[%clk 0:01:26]}  exd5 {[%clk 0:01:27]} 19. h3 {[%clk 0:01:23]}  Nh6 {[%clk 0:01:27]} 20. Rf1 {[%clk 0:01:22]}  c4 {[%clk 0:01:25]} 21. bxc4 {[%clk 0:01:14]}  dxc4 {[%clk 0:01:26]} 22. Ne4 {[%clk 0:01:13]}  Bxe4 {[%clk 0:01:19]} 23. Qxe4 {[%clk 0:01:13]}  c3 {[%clk 0:01:12]} 24. Bc1 {[%clk 0:01:13]}  f6 {[%clk 0:00:55]} 25. e6 {[%clk 0:01:11]}  Kh8 {[%clk 0:00:51]} 26. d5 {[%clk 0:01:11]}  Qd6 {[%clk 0:00:49]} 27. Kh2 {[%clk 0:01:01]}  f5 {[%clk 0:00:45]} 28. Qd4 {[%clk 0:01:00]}  Ne5 {[%clk 0:00:39]} 29. e4 {[%clk 0:00:57]}  Rc4 {[%clk 0:00:28]} 30. Qf2 {[%clk 0:00:49]}  Neg4+ {[%clk 0:00:28]} 31. hxg4 {[%clk 0:00:46]}  Nxg4+ {[%clk 0:00:29]} 32. Kg1 {[%clk 0:00:45]}  Nxf2 {[%clk 0:00:29]} 33. Rxf2 {[%clk 0:00:45]}  c2 {[%clk 0:00:21]} 34. Rdf1 {[%clk 0:00:45]}  fxe4 {[%clk 0:00:15]} 35. Rf7 {[%clk 0:00:26]}  h6 {[%clk 0:00:09]} 36. Rd7 {[%clk 0:00:15]}  Qxg3 {[%clk 0:00:08]} 37. e7 {[%clk 0:00:14]}  Rcc8 {[%clk 0:00:04]} 38. d6 {[%clk 0:00:13]}  e3 {[%clk 0:00:03]} 39. Rf3 {[%clk 0:00:04]}  Qe1+ {[%clk 0:00:03]} 40. Rf1 {[%clk 0:00:05]}  Qg3 {[%clk 0:00:02]} 41. Rf3 {[%clk 0:00:05]}  Qe1+ {[%clk 0:00:01]} 42. Rf1 {[%clk 0:00:05]}  Qc3 {[%clk 0:00:02]} 43. Kh2 {[%clk 0:00:06]}  e2 {[%clk 0:00:03]} 44. Rf5 {[%clk 0:00:05]}  e1=Q {[%clk 0:00:03]} 45. Bf4 {[%clk 0:00:04]}  Qh4+ {[%clk 0:00:03]} 46. Kg1 {[%clk 0:00:04]}  Qce1+ {[%clk 0:00:03]} 47. Bf1 {[%clk 0:00:05]}  Qhf2+ {[%clk 0:00:04]} 48. Kh1 {[%clk 0:00:05]}  Qexf1# {[%clk 0:00:04]} 0-1


[Site "https://www.chess.com"]

[Event "Titled Tuesday Blitz June 13 Early 2023"]
[White "Jaivardhan Raj"]
[Black "Rodchenkov, Sergey D."]
[WhiteFideId "25744437"]
[BlackFideId "4168712"]
[WhiteElo "1772"]
[BlackElo "2277"]
[Result "1-0"]
[Round "9"]
[TimeControl "180+2"]
[Date "2023.06.13"]
[WhiteClock "0:00:12"]
[BlackClock "0:00:55"]
[Board "103"]

1. e4 {[%clk 0:02:50]}  c5 {[%clk 0:02:59]} 2. Nf3 {[%clk 0:02:48]}  d6 {[%clk 0:02:59]} 3. d4 {[%clk 0:02:47]}  cxd4 {[%clk 0:03:00]} 4. Qxd4 {[%clk 0:02:48]}  Nc6 {[%clk 0:02:53]} 5. Qe3 {[%clk 0:02:47]}  Nf6 {[%clk 0:02:48]} 6. c4 {[%clk 0:02:46]}  g6 {[%clk 0:02:48]} 7. Nc3 {[%clk 0:02:43]}  Bg7 {[%clk 0:02:48]} 8. h3 {[%clk 0:02:42]}  O-O {[%clk 0:02:47]} 9. Be2 {[%clk 0:02:41]}  Be6 {[%clk 0:02:47]} 10. O-O {[%clk 0:02:41]}  Nd7 {[%clk 0:02:46]} 11. Rb1 {[%clk 0:02:40]}  a5 {[%clk 0:02:45]} 12. Rd1 {[%clk 0:02:37]}  a4 {[%clk 0:02:44]} 13. Nd5 {[%clk 0:02:31]}  Nde5 {[%clk 0:02:42]} 14. Nxe5 {[%clk 0:02:28]}  Nxe5 {[%clk 0:02:37]} 15. b3 {[%clk 0:02:23]}  axb3 {[%clk 0:02:24]} 16. axb3 {[%clk 0:02:24]}  Ra2 {[%clk 0:02:23]} 17. Nb4 {[%clk 0:02:14]}  Bh6 {[%clk 0:02:09]} 18. Qxh6 {[%clk 0:01:55]}  Rxe2 {[%clk 0:02:09]} 19. Be3 {[%clk 0:01:39]}  Qa5 {[%clk 0:02:04]} 20. Nd5 {[%clk 0:01:30]}  Bxd5 {[%clk 0:02:04]} 21. exd5 {[%clk 0:01:24]}  Qa2 {[%clk 0:01:54]} 22. Bd4 {[%clk 0:01:01]}  Qc2 {[%clk 0:01:48]} 23. Rdc1 {[%clk 0:00:47]}  Qf5 {[%clk 0:01:46]} 24. Re1 {[%clk 0:00:42]}  Rc2 {[%clk 0:01:38]} 25. Rbc1 {[%clk 0:00:36]}  Ra2 {[%clk 0:01:35]} 26. f4 {[%clk 0:00:29]}  f6 {[%clk 0:01:21]} 27. fxe5 {[%clk 0:00:27]}  fxe5 {[%clk 0:01:22]} 28. Rf1 {[%clk 0:00:25]}  Rxg2+ {[%clk 0:01:02]} 29. Kh1 {[%clk 0:00:16]}  Rf2 {[%clk 0:00:56]} 30. Rxf2 {[%clk 0:00:14]}  Qe4+ {[%clk 0:00:56]} 31. Kg1 {[%clk 0:00:13]}  Qxd4 {[%clk 0:00:55]} 32. Qxf8# {[%clk 0:00:12]} 1-0


[Site "https://www.chess.com"]

[Event "Titled Tuesday Blitz June 13 Early 2023"]
[White "Howell, David W L"]
[Black "KorolDimitriy75"]
[WhiteFideId "410608"]
[WhiteElo "2567"]
[BlackElo "2429"]
[Result "1-0"]
[Round "9"]
[TimeControl "180+2"]
[Date "2023.06.13"]
[WhiteClock "0:00:12"]
[BlackClock "0:00:00"]
[Board "104"]

1. b3 {[%clk 0:02:38]}  c5 {[%clk 0:02:58]} 2. Bb2 {[%clk 0:02:39]}  Nc6 {[%clk 0:02:58]} 3. e3 {[%clk 0:02:37]}  e5 {[%clk 0:02:53]} 4. c4 {[%clk 0:02:28]}  g6 {[%clk 0:02:51]} 5. Nc3 {[%clk 0:02:25]}  Bg7 {[%clk 0:02:51]} 6. g3 {[%clk 0:02:25]}  Nge7 {[%clk 0:02:51]} 7. Bg2 {[%clk 0:02:26]}  O-O {[%clk 0:02:51]} 8. Nge2 {[%clk 0:02:26]}  d6 {[%clk 0:02:51]} 9. O-O {[%clk 0:02:25]}  f5 {[%clk 0:02:50]} 10. a3 {[%clk 0:02:21]}  Be6 {[%clk 0:02:42]} 11. Nd5 {[%clk 0:02:21]}  Qd7 {[%clk 0:02:40]} 12. d3 {[%clk 0:02:13]}  Rae8 {[%clk 0:02:35]} 13. b4 {[%clk 0:02:08]}  b6 {[%clk 0:02:13]} 14. Qa4 {[%clk 0:01:49]}  h6 {[%clk 0:01:52]} 15. Rfe1 {[%clk 0:01:37]}  Kh7 {[%clk 0:01:51]} 16. Nec3 {[%clk 0:01:29]}  g5 {[%clk 0:01:16]} 17. Nxe7 {[%clk 0:01:17]}  Nxe7 {[%clk 0:01:15]} 18. Qxd7 {[%clk 0:01:18]}  Bxd7 {[%clk 0:01:15]} 19. Rab1 {[%clk 0:01:18]}  Bc6 {[%clk 0:00:50]} 20. Nb5 {[%clk 0:01:01]}  Bxb5 {[%clk 0:00:43]} 21. cxb5 {[%clk 0:01:02]}  Rd8 {[%clk 0:00:41]} 22. Rec1 {[%clk 0:00:57]}  Rd7 {[%clk 0:00:40]} 23. a4 {[%clk 0:00:57]}  Rfd8 {[%clk 0:00:39]} 24. a5 {[%clk 0:00:49]}  cxb4 {[%clk 0:00:34]} 25. a6 {[%clk 0:00:46]}  d5 {[%clk 0:00:33]} 26. Ba1 {[%clk 0:00:46]}  Ng6 {[%clk 0:00:26]} 27. Rxb4 {[%clk 0:00:45]}  Bf8 {[%clk 0:00:26]} 28. Rb3 {[%clk 0:00:39]}  Bc5 {[%clk 0:00:23]} 29. d4 {[%clk 0:00:29]}  exd4 {[%clk 0:00:23]} 30. exd4 {[%clk 0:00:25]}  Bf8 {[%clk 0:00:22]} 31. Kf1 {[%clk 0:00:23]}  Bg7 {[%clk 0:00:21]} 32. Bb2 {[%clk 0:00:23]}  Ne7 {[%clk 0:00:16]} 33. Ke2 {[%clk 0:00:23]}  Kg6 {[%clk 0:00:16]} 34. Kd3 {[%clk 0:00:23]}  Kf7 {[%clk 0:00:17]} 35. Rbc3 {[%clk 0:00:23]}  Ng6 {[%clk 0:00:15]} 36. Ba3 {[%clk 0:00:20]}  Ne7 {[%clk 0:00:13]} 37. Rc7 {[%clk 0:00:19]}  Bf8 {[%clk 0:00:12]} 38. Rb7 {[%clk 0:00:17]}  Rxb7 {[%clk 0:00:07]} 39. axb7 {[%clk 0:00:18]}  Rb8 {[%clk 0:00:07]} 40. Rc7 {[%clk 0:00:17]}  Ke6 {[%clk 0:00:08]} 41. f4 {[%clk 0:00:14]}  g4 {[%clk 0:00:07]} 42. Bb4 {[%clk 0:00:12]}  h5 {[%clk 0:00:05]} 43. Ba3 {[%clk 0:00:11]}  Kf6 {[%clk 0:00:04]} 44. Bd6 {[%clk 0:00:11]}  Ke6 {[%clk 0:00:03]} 45. Be5 {[%clk 0:00:11]}  Ng6 {[%clk 0:00:03]} 46. Rc6+ {[%clk 0:00:11]}  Kd7 {[%clk 0:00:00]} 47. Bxb8 {[%clk 0:00:12]} 1-0


[Site "https://www.chess.com"]

[Event "Titled Tuesday Blitz June 13 Early 2023"]
[White "Hayrapetyan, Hovik"]
[Black "LeoLV10"]
[WhiteFideId "13302639"]
[WhiteElo "2348"]
[BlackElo "2426"]
[Result "1-0"]
[Round "9"]
[TimeControl "180+2"]
[Date "2023.06.13"]
[WhiteClock "0:00:45"]
[BlackClock "0:00:15"]
[Board "105"]

1. d4 {[%clk 0:02:55]}  Nf6 {[%clk 0:02:59]} 2. c4 {[%clk 0:02:55]}  e6 {[%clk 0:02:59]} 3. Nc3 {[%clk 0:02:55]}  Bb4 {[%clk 0:02:59]} 4. Nf3 {[%clk 0:02:55]}  O-O {[%clk 0:02:57]} 5. Bg5 {[%clk 0:02:55]}  d5 {[%clk 0:02:57]} 6. e3 {[%clk 0:02:53]}  Nbd7 {[%clk 0:02:54]} 7. cxd5 {[%clk 0:02:51]}  exd5 {[%clk 0:02:54]} 8. Bd3 {[%clk 0:02:51]}  h6 {[%clk 0:02:53]} 9. Bh4 {[%clk 0:02:51]}  c5 {[%clk 0:02:53]} 10. O-O {[%clk 0:02:46]}  Qc7 {[%clk 0:02:41]} 11. dxc5 {[%clk 0:02:42]}  Bxc5 {[%clk 0:02:38]} 12. Rc1 {[%clk 0:02:40]}  Qd6 {[%clk 0:02:17]} 13. Nb5 {[%clk 0:02:32]}  Qb6 {[%clk 0:02:11]} 14. a3 {[%clk 0:02:25]}  a6 {[%clk 0:02:09]} 15. Nbd4 {[%clk 0:02:25]}  Re8 {[%clk 0:02:06]} 16. b4 {[%clk 0:02:22]}  Bd6 {[%clk 0:01:55]} 17. Qa4 {[%clk 0:02:11]}  Rb8 {[%clk 0:01:35]} 18. Rfd1 {[%clk 0:01:45]}  Qd8 {[%clk 0:01:17]} 19. Nf5 {[%clk 0:01:39]}  b5 {[%clk 0:01:05]} 20. Qc2 {[%clk 0:01:33]}  Bf8 {[%clk 0:01:05]} 21. Bg3 {[%clk 0:01:30]}  Bb7 {[%clk 0:00:48]} 22. Bxb8 {[%clk 0:01:27]}  Qxb8 {[%clk 0:00:49]} 23. Qc7 {[%clk 0:01:25]}  Qa8 {[%clk 0:00:48]} 24. Nd6 {[%clk 0:01:03]}  Bxd6 {[%clk 0:00:48]} 25. Qxd6 {[%clk 0:01:04]}  Nf8 {[%clk 0:00:40]} 26. Nd4 {[%clk 0:01:02]}  Bc8 {[%clk 0:00:36]} 27. Rc7 {[%clk 0:00:54]}  Be6 {[%clk 0:00:35]} 28. Rdc1 {[%clk 0:00:53]}  Qb8 {[%clk 0:00:21]} 29. Nc6 {[%clk 0:00:47]}  Qa8 {[%clk 0:00:21]} 30. Ra7 {[%clk 0:00:47]}  Qc8 {[%clk 0:00:13]} 31. Ne7+ {[%clk 0:00:46]}  Rxe7 {[%clk 0:00:14]} 32. Rxc8 {[%clk 0:00:45]}  Rxa7 {[%clk 0:00:15]} 33. Qxf8# {[%clk 0:00:45]} 1-0


[Site "https://www.chess.com"]

[Event "Titled Tuesday Blitz June 13 Early 2023"]
[White "Orlov, Georgi"]
[Black "Petrova, Irina"]
[WhiteFideId "2011271"]
[BlackFideId "14124122"]
[WhiteElo "2613"]
[BlackElo "2084"]
[Result "1-0"]
[Round "9"]
[TimeControl "180+2"]
[Date "2023.06.13"]
[WhiteClock "0:01:59"]
[BlackClock "0:01:06"]
[Board "106"]

1. d4 {[%clk 0:03:00]}  d6 {[%clk 0:03:00]} 2. Nf3 {[%clk 0:02:59]}  g6 {[%clk 0:03:00]} 3. c4 {[%clk 0:02:58]}  Bg7 {[%clk 0:03:01]} 4. e4 {[%clk 0:02:56]}  Nc6 {[%clk 0:02:59]} 5. d5 {[%clk 0:02:53]}  Ne5 {[%clk 0:02:59]} 6. Nd4 {[%clk 0:02:52]}  c5 {[%clk 0:02:56]} 7. Nc2 {[%clk 0:02:51]}  Nf6 {[%clk 0:02:53]} 8. Nc3 {[%clk 0:02:50]}  O-O {[%clk 0:02:46]} 9. f4 {[%clk 0:02:49]}  Ned7 {[%clk 0:02:45]} 10. Be2 {[%clk 0:02:43]}  a6 {[%clk 0:02:43]} 11. a4 {[%clk 0:02:41]}  Rb8 {[%clk 0:02:41]} 12. O-O {[%clk 0:02:41]}  b5 {[%clk 0:02:41]} 13. axb5 {[%clk 0:02:40]}  axb5 {[%clk 0:02:41]} 14. cxb5 {[%clk 0:02:39]}  c4 {[%clk 0:02:21]} 15. Be3 {[%clk 0:02:37]}  Nb6 {[%clk 0:01:58]} 16. Nb4 {[%clk 0:02:33]}  Bd7 {[%clk 0:01:53]} 17. Nc6 {[%clk 0:02:23]}  Bxc6 {[%clk 0:01:53]} 18. dxc6 {[%clk 0:02:22]}  d5 {[%clk 0:01:41]} 19. e5 {[%clk 0:02:18]}  Ne4 {[%clk 0:01:33]} 20. Nxe4 {[%clk 0:02:15]}  dxe4 {[%clk 0:01:34]} 21. Qxd8 {[%clk 0:02:14]}  Rbxd8 {[%clk 0:01:27]} 22. Bxb6 {[%clk 0:02:10]}  Rb8 {[%clk 0:01:27]} 23. Ra6 {[%clk 0:02:07]}  f6 {[%clk 0:01:09]} 24. Bxc4+ {[%clk 0:02:05]}  Kh8 {[%clk 0:01:09]} 25. c7 {[%clk 0:02:01]}  Ra8 {[%clk 0:01:09]} 26. Rxa8 {[%clk 0:02:00]}  Rxa8 {[%clk 0:01:06]} 27. Rd1 {[%clk 0:01:59]} 1-0


[Site "https://www.chess.com"]

[Event "Titled Tuesday Blitz June 13 Early 2023"]
[White "Girya, Olga"]
[Black "Gracia Alvarez, Gerardo Antonio"]
[WhiteFideId "4195752"]
[BlackFideId "5109124"]
[WhiteElo "2263"]
[BlackElo "2160"]
[Result "1/2-1/2"]
[Round "9"]
[TimeControl "180+2"]
[Date "2023.06.13"]
[WhiteClock "0:00:09"]
[BlackClock "0:00:08"]
[Board "109"]

1. d4 {[%clk 0:03:00]}  Nf6 {[%clk 0:02:59]} 2. Nf3 {[%clk 0:03:01]}  g6 {[%clk 0:02:59]} 3. Bg5 {[%clk 0:03:01]}  Bg7 {[%clk 0:02:59]} 4. Nbd2 {[%clk 0:03:01]}  O-O {[%clk 0:02:57]} 5. c3 {[%clk 0:03:00]}  d6 {[%clk 0:02:56]} 6. e4 {[%clk 0:03:00]}  c5 {[%clk 0:02:55]} 7. dxc5 {[%clk 0:02:59]}  dxc5 {[%clk 0:02:54]} 8. Bc4 {[%clk 0:02:59]}  Nc6 {[%clk 0:02:46]} 9. O-O {[%clk 0:02:58]}  Qc7 {[%clk 0:02:46]} 10. h3 {[%clk 0:02:57]}  b6 {[%clk 0:02:43]} 11. Re1 {[%clk 0:02:55]}  h6 {[%clk 0:02:40]} 12. Be3 {[%clk 0:02:53]}  Nh5 {[%clk 0:02:34]} 13. Qc2 {[%clk 0:02:48]}  Nf4 {[%clk 0:02:19]} 14. a4 {[%clk 0:02:43]}  Bb7 {[%clk 0:01:59]} 15. Bf1 {[%clk 0:02:17]}  Rad8 {[%clk 0:01:49]} 16. Nc4 {[%clk 0:02:14]}  Bc8 {[%clk 0:01:41]} 17. Rad1 {[%clk 0:01:59]}  Kh7 {[%clk 0:01:33]} 18. Rxd8 {[%clk 0:01:57]}  Rxd8 {[%clk 0:01:32]} 19. Rd1 {[%clk 0:01:57]}  Rxd1 {[%clk 0:01:32]} 20. Qxd1 {[%clk 0:01:58]}  Be6 {[%clk 0:01:32]} 21. Qd2 {[%clk 0:01:40]}  Nh5 {[%clk 0:01:29]} 22. Qc1 {[%clk 0:00:56]}  Nf6 {[%clk 0:01:29]} 23. Nfd2 {[%clk 0:00:55]}  Qb7 {[%clk 0:01:24]} 24. f3 {[%clk 0:00:53]}  Qc7 {[%clk 0:01:14]} 25. Be2 {[%clk 0:00:49]}  Nh5 {[%clk 0:01:08]} 26. Nf1 {[%clk 0:00:49]}  g5 {[%clk 0:01:09]} 27. Na3 {[%clk 0:00:34]}  Be5 {[%clk 0:01:04]} 28. Bc4 {[%clk 0:00:32]}  Nd8 {[%clk 0:01:00]} 29. Bxe6 {[%clk 0:00:30]}  Nxe6 {[%clk 0:01:01]} 30. Nc4 {[%clk 0:00:30]}  Bf4 {[%clk 0:01:00]} 31. Qd2 {[%clk 0:00:29]}  Kg8 {[%clk 0:00:52]} 32. Qd5 {[%clk 0:00:21]}  Qd8 {[%clk 0:00:45]} 33. Qxd8+ {[%clk 0:00:17]}  Nxd8 {[%clk 0:00:46]} 34. Kf2 {[%clk 0:00:12]}  Nc6 {[%clk 0:00:33]} 35. g3 {[%clk 0:00:12]}  Bxe3+ {[%clk 0:00:34]} 36. Nfxe3 {[%clk 0:00:13]}  e6 {[%clk 0:00:31]} 37. Ng4 {[%clk 0:00:13]}  Kg7 {[%clk 0:00:31]} 38. e5 {[%clk 0:00:12]}  Kg6 {[%clk 0:00:21]} 39. Nd6 {[%clk 0:00:12]}  Ng7 {[%clk 0:00:16]} 40. h4 {[%clk 0:00:05]}  gxh4 {[%clk 0:00:14]} 41. gxh4 {[%clk 0:00:06]}  h5 {[%clk 0:00:15]} 42. Ne3 {[%clk 0:00:05]}  Nxe5 {[%clk 0:00:15]} 43. Nc8 {[%clk 0:00:06]}  Nc6 {[%clk 0:00:15]} 44. Nd6 {[%clk 0:00:06]}  Kf6 {[%clk 0:00:14]} 45. Ne4+ {[%clk 0:00:05]}  Ke7 {[%clk 0:00:13]} 46. f4 {[%clk 0:00:05]}  f5 {[%clk 0:00:13]} 47. Ng5 {[%clk 0:00:05]}  Ne8 {[%clk 0:00:13]} 48. Nf3 {[%clk 0:00:05]}  Nf6 {[%clk 0:00:13]} 49. Ng2 {[%clk 0:00:04]}  Na5 {[%clk 0:00:11]} 50. Nd2 {[%clk 0:00:03]}  Nb7 {[%clk 0:00:07]} 51. Kf3 {[%clk 0:00:04]}  Nd6 {[%clk 0:00:08]} 52. Ne3 {[%clk 0:00:04]}  Nde4 {[%clk 0:00:08]} 53. Nef1 {[%clk 0:00:04]}  Nxd2+ {[%clk 0:00:08]} 54. Nxd2 {[%clk 0:00:05]}  Nd5 {[%clk 0:00:06]} 55. Nf1 {[%clk 0:00:06]}  Kf6 {[%clk 0:00:05]} 56. Ng3 {[%clk 0:00:06]}  Kg6 {[%clk 0:00:06]} 57. Ne2 {[%clk 0:00:06]}  Ne7 {[%clk 0:00:06]} 58. Ng3 {[%clk 0:00:06]}  Nc6 {[%clk 0:00:06]} 59. Ne2 {[%clk 0:00:06]}  Na5 {[%clk 0:00:06]} 60. Nc1 {[%clk 0:00:06]}  Nc4 {[%clk 0:00:06]} 61. Nd3 {[%clk 0:00:06]}  Kf6 {[%clk 0:00:07]} 62. Ke2 {[%clk 0:00:04]}  e5 {[%clk 0:00:06]} 63. b3 {[%clk 0:00:04]}  e4 {[%clk 0:00:04]} 64. bxc4 {[%clk 0:00:04]}  exd3+ {[%clk 0:00:04]} 65. Kxd3 {[%clk 0:00:05]}  Ke6 {[%clk 0:00:05]} 66. Kc2 {[%clk 0:00:04]}  Kd6 {[%clk 0:00:05]} 67. Kb3 {[%clk 0:00:05]}  Kc6 {[%clk 0:00:06]} 68. Ka3 {[%clk 0:00:04]}  a5 {[%clk 0:00:05]} 69. Kb3 {[%clk 0:00:04]}  Kd6 {[%clk 0:00:06]} 70. Kc2 {[%clk 0:00:05]}  Ke6 {[%clk 0:00:06]} 71. Kd3 {[%clk 0:00:06]}  Kf6 {[%clk 0:00:07]} 72. Ke3 {[%clk 0:00:07]}  Ke6 {[%clk 0:00:07]} 73. Kd3 {[%clk 0:00:08]}  Kd6 {[%clk 0:00:07]} 74. Ke3 {[%clk 0:00:09]}  Ke6 {[%clk 0:00:08]} 75. Kd3 {[%clk 0:00:09]} 1/2-1/2


[Site "https://www.chess.com"]

[Event "Titled Tuesday Blitz June 13 Early 2023"]
[White "Xie, Bryan"]
[Black "Shuvalov, Evgenij"]
[WhiteFideId "30941296"]
[BlackFideId "4187237"]
[WhiteElo "2033"]
[BlackElo "2080"]
[Result "0-1"]
[Round "9"]
[TimeControl "180+2"]
[Date "2023.06.13"]
[WhiteClock "0:00:02"]
[BlackClock "0:01:02"]
[Board "111"]

1. e4 {[%clk 0:03:00]}  e6 {[%clk 0:02:59]} 2. d4 {[%clk 0:03:00]}  d5 {[%clk 0:03:00]} 3. Nc3 {[%clk 0:03:01]}  Bb4 {[%clk 0:02:59]} 4. e5 {[%clk 0:03:02]}  c5 {[%clk 0:03:00]} 5. a3 {[%clk 0:03:02]}  Bxc3+ {[%clk 0:03:00]} 6. bxc3 {[%clk 0:03:03]}  Ne7 {[%clk 0:02:59]} 7. Qg4 {[%clk 0:03:04]}  Qc7 {[%clk 0:02:59]} 8. Qxg7 {[%clk 0:03:03]}  Rg8 {[%clk 0:02:58]} 9. Qxh7 {[%clk 0:03:04]}  cxd4 {[%clk 0:02:59]} 10. Ne2 {[%clk 0:02:58]}  Nbc6 {[%clk 0:02:58]} 11. cxd4 {[%clk 0:02:55]}  Nxd4 {[%clk 0:02:57]} 12. Ra2 {[%clk 0:02:35]}  Bd7 {[%clk 0:02:26]} 13. Bd2 {[%clk 0:01:26]}  Ndf5 {[%clk 0:02:05]} 14. f4 {[%clk 0:01:09]}  O-O-O {[%clk 0:02:01]} 15. Qxf7 {[%clk 0:01:06]}  Rh8 {[%clk 0:01:47]} 16. Nd4 {[%clk 0:00:26]}  Qb6 {[%clk 0:01:39]} 17. Nxf5 {[%clk 0:00:18]}  Nxf5 {[%clk 0:01:38]} 18. Bb4 {[%clk 0:00:18]}  a5 {[%clk 0:01:33]} 19. Be7 {[%clk 0:00:06]}  Qb1+ {[%clk 0:01:31]} 20. Kd2 {[%clk 0:00:04]}  Nxe7 {[%clk 0:01:26]} 21. Qxe7 {[%clk 0:00:01]}  Qxa2 {[%clk 0:01:26]} 22. Bd3 {[%clk 0:00:01]}  Qb2 {[%clk 0:01:21]} 23. Qc5+ {[%clk 0:00:02]}  Kb8 {[%clk 0:01:21]} 24. Qxa5 {[%clk 0:00:02]}  Qd4 {[%clk 0:01:19]} 25. Rb1 {[%clk 0:00:01]}  Qxf4+ {[%clk 0:01:14]} 26. Kd1 {[%clk 0:00:01]}  Bc6 {[%clk 0:01:11]} 27. Qb6 {[%clk 0:00:01]}  Rc8 {[%clk 0:01:06]} 28. a4 {[%clk 0:00:02]}  Rxh2 {[%clk 0:01:02]} 29. Ke2 {[%clk 0:00:02]}  Rxg2+ {[%clk 0:01:02]} 0-1


[Site "https://www.chess.com"]

[Event "Titled Tuesday Blitz June 13 Early 2023"]
[White "Mamedov, Edgar"]
[Black "Mayaud, Raphael"]
[WhiteFideId "13739980"]
[BlackFideId "627151"]
[WhiteElo "2317"]
[BlackElo "2191"]
[Result "1-0"]
[Round "9"]
[TimeControl "180+2"]
[Date "2023.06.13"]
[WhiteClock "0:00:08"]
[BlackClock "0:00:00"]
[Board "112"]

1. e4 {[%clk 0:03:00]}  d5 {[%clk 0:02:54]} 2. exd5 {[%clk 0:02:59]}  Qxd5 {[%clk 0:02:53]} 3. Nc3 {[%clk 0:02:59]}  Qa5 {[%clk 0:02:54]} 4. Nf3 {[%clk 0:02:55]}  c6 {[%clk 0:02:54]} 5. Bc4 {[%clk 0:02:54]}  Nf6 {[%clk 0:02:54]} 6. O-O {[%clk 0:02:53]}  Bf5 {[%clk 0:02:54]} 7. d3 {[%clk 0:02:52]}  e6 {[%clk 0:02:54]} 8. Bg5 {[%clk 0:02:52]}  Bg4 {[%clk 0:02:53]} 9. Bh4 {[%clk 0:02:43]}  Qh5 {[%clk 0:02:49]} 10. Bxf6 {[%clk 0:02:40]}  Bxf3 {[%clk 0:02:32]} 11. Qxf3 {[%clk 0:02:38]}  Qxf3 {[%clk 0:02:32]} 12. gxf3 {[%clk 0:02:39]}  gxf6 {[%clk 0:02:32]} 13. Rae1 {[%clk 0:02:33]}  Nd7 {[%clk 0:02:32]} 14. f4 {[%clk 0:02:28]}  f5 {[%clk 0:02:32]} 15. Kg2 {[%clk 0:02:22]}  Bd6 {[%clk 0:02:23]} 16. Kf3 {[%clk 0:02:21]}  Ke7 {[%clk 0:02:17]} 17. Ne2 {[%clk 0:02:13]}  Rhg8 {[%clk 0:02:12]} 18. Nd4 {[%clk 0:02:08]}  Bc7 {[%clk 0:00:59]} 19. Nxf5+ {[%clk 0:02:03]}  Kf6 {[%clk 0:00:59]} 20. Ng3 {[%clk 0:02:02]}  Nb6 {[%clk 0:00:55]} 21. Bb3 {[%clk 0:02:01]}  Nd5 {[%clk 0:00:55]} 22. Re4 {[%clk 0:01:59]}  a5 {[%clk 0:00:51]} 23. a3 {[%clk 0:01:58]}  b5 {[%clk 0:00:51]} 24. c3 {[%clk 0:01:44]}  Rg6 {[%clk 0:00:45]} 25. Rg1 {[%clk 0:01:36]}  Rag8 {[%clk 0:00:40]} 26. d4 {[%clk 0:01:35]}  Ke7 {[%clk 0:00:16]} 27. Nf5+ {[%clk 0:01:30]}  Kd7 {[%clk 0:00:15]} 28. Rxg6 {[%clk 0:01:25]}  Rxg6 {[%clk 0:00:16]} 29. Ng3 {[%clk 0:01:24]}  Rf6 {[%clk 0:00:16]} 30. f5 {[%clk 0:01:24]}  exf5 {[%clk 0:00:15]} 31. Rh4 {[%clk 0:01:23]}  h6 {[%clk 0:00:14]} 32. Bxd5 {[%clk 0:01:22]}  cxd5 {[%clk 0:00:13]} 33. Ne2 {[%clk 0:01:20]}  b4 {[%clk 0:00:13]} 34. cxb4 {[%clk 0:01:11]}  axb4 {[%clk 0:00:14]} 35. a4 {[%clk 0:01:11]}  Kc6 {[%clk 0:00:10]} 36. b3 {[%clk 0:01:06]}  Kd6 {[%clk 0:00:10]} 37. Nf4 {[%clk 0:01:06]}  Kc6 {[%clk 0:00:09]} 38. Nd3 {[%clk 0:01:04]}  Bd6 {[%clk 0:00:08]} 39. Rh5 {[%clk 0:01:01]}  Kd7 {[%clk 0:00:07]} 40. Ne5+ {[%clk 0:00:59]}  Bxe5 {[%clk 0:00:07]} 41. dxe5 {[%clk 0:00:58]}  Rc6 {[%clk 0:00:08]} 42. Rxf5 {[%clk 0:00:57]}  Ke7 {[%clk 0:00:07]} 43. Kg2 {[%clk 0:00:54]}  Rc3 {[%clk 0:00:07]} 44. Rf3 {[%clk 0:00:54]}  Rc2 {[%clk 0:00:07]} 45. Re3 {[%clk 0:00:46]}  Ke6 {[%clk 0:00:06]} 46. Kf3 {[%clk 0:00:42]}  d4 {[%clk 0:00:06]} 47. Re1 {[%clk 0:00:31]}  Rc3+ {[%clk 0:00:03]} 48. Ke4 {[%clk 0:00:30]}  d3 {[%clk 0:00:04]} 49. Rd1 {[%clk 0:00:25]}  Rxb3 {[%clk 0:00:03]} 50. Rxd3 {[%clk 0:00:25]}  Rb2 {[%clk 0:00:04]} 51. f4 {[%clk 0:00:19]}  Ra2 {[%clk 0:00:03]} 52. f5+ {[%clk 0:00:15]}  Ke7 {[%clk 0:00:03]} 53. f6+ {[%clk 0:00:15]}  Ke8 {[%clk 0:00:04]} 54. Rb3 {[%clk 0:00:15]}  Rxa4 {[%clk 0:00:03]} 55. Kf5 {[%clk 0:00:15]}  Kd7 {[%clk 0:00:03]} 56. h4 {[%clk 0:00:14]}  Ke8 {[%clk 0:00:02]} 57. e6 {[%clk 0:00:11]}  fxe6+ {[%clk 0:00:02]} 58. Kg6 {[%clk 0:00:11]}  Ra6 {[%clk 0:00:03]} 59. Rxb4 {[%clk 0:00:09]}  e5 {[%clk 0:00:00]} 60. Kg7 {[%clk 0:00:08]} 1-0


[Site "https://www.chess.com"]